[Event "Early-Titled-Tuesday-Blitz-May-07-2024"]
[Site "Chess.com"]
[Date "2024.05.07"]
[Round "3"]
[White "Root_21"]
[Black "kpio91"]
[Result "0-1"]
[WhiteElo "2599"]
[BlackElo "2870"]
[TimeControl "180+1"]
[EndTime "8:33:24 PDT"]
[Termination "kpio91 won by checkmate"]

1. e4 {[%clk 0:03:00.9]} 1... e5 {[%clk 0:02:59.6]} 2. Nf3 {[%clk 0:03:00.5]}
2... Nc6 {[%clk 0:02:59.5]} 3. Bb5 {[%clk 0:03:00.7]} 3... Nf6 {[%clk
0:02:58.9]} 4. O-O {[%clk 0:02:58.6]} 4... Nxe4 {[%clk 0:02:57.3]} 5. Re1 {[%clk
0:02:58.6]} 5... Nd6 {[%clk 0:02:54.2]} 6. Nxe5 {[%clk 0:02:58.9]} 6... Be7
{[%clk 0:02:53.3]} 7. Bd3 {[%clk 0:02:46]} 7... Nxe5 {[%clk 0:02:43.1]} 8. Rxe5
{[%clk 0:02:46.9]} 8... O-O {[%clk 0:02:43.7]} 9. Re3 {[%clk 0:02:40.2]} 9... g6
{[%clk 0:02:34.2]} 10. b3 {[%clk 0:02:39.6]} 10... Bf6 {[%clk 0:02:34.2]} 11.
Nc3 {[%clk 0:02:40]} 11... Ne8 {[%clk 0:02:28.4]} 12. Bb2 {[%clk 0:02:34.8]}
12... d5 {[%clk 0:02:26]} 13. Re1 {[%clk 0:02:26.4]} 13... Ng7 {[%clk
0:02:21.2]} 14. Qf3 {[%clk 0:02:25.6]} 14... c6 {[%clk 0:02:07]} 15. Ba3 {[%clk
0:02:23.1]} 15... Re8 {[%clk 0:02:05.5]} 16. Rxe8+ {[%clk 0:02:21.4]} 16... Nxe8
{[%clk 0:02:05.7]} 17. Re1 {[%clk 0:02:15.5]} 17... Be6 {[%clk 0:02:02.8]} 18.
Ne2 {[%clk 0:02:11.2]} 18... Ng7 {[%clk 0:01:58]} 19. Nf4 {[%clk 0:02:08.8]}
19... Bf5 {[%clk 0:01:58.1]} 20. Nh5 {[%clk 0:02:02.4]} 20... Nxh5 {[%clk
0:01:43.8]} 21. Bxf5 {[%clk 0:02:02.2]} 21... Ng7 {[%clk 0:01:24.8]} 22. Bd3
{[%clk 0:01:50.1]} 22... Ne6 {[%clk 0:01:23.9]} 23. c3 {[%clk 0:01:45.8]} 23...
Bg7 {[%clk 0:01:22.4]} 24. g3 {[%clk 0:01:45]} 24... Qa5 {[%clk 0:01:17.7]} 25.
Bd6 {[%clk 0:01:06.1]} 25... Qxa2 {[%clk 0:01:14.1]} 26. Qe3 {[%clk 0:00:57.5]}
26... Qa5 {[%clk 0:01:09.1]} 27. h4 {[%clk 0:00:52.5]} 27... d4 {[%clk 0:01:06]}
28. cxd4 {[%clk 0:00:50.9]} 28... Qd5 {[%clk 0:01:01]} 29. Be5 {[%clk
0:00:41.4]} 29... Nxd4 {[%clk 0:00:43]} 30. Bxd4 {[%clk 0:00:36.6]} 30... Bxd4
{[%clk 0:00:42.7]} 31. Qe2 {[%clk 0:00:32.5]} 31... Qd6 {[%clk 0:00:38.4]} 32.
Qf3 {[%clk 0:00:30.8]} 32... Rf8 {[%clk 0:00:35.3]} 33. h5 {[%clk 0:00:29.4]}
33... Kg7 {[%clk 0:00:34.9]} 34. Kg2 {[%clk 0:00:28.6]} 34... Qf6 {[%clk
0:00:31.2]} 35. Qe2 {[%clk 0:00:24.1]} 35... Rd8 {[%clk 0:00:24.4]} 36. Rh1
{[%clk 0:00:19.9]} 36... Rd6 {[%clk 0:00:23.3]} 37. h6+ {[%clk 0:00:19.7]} 37...
Kf8 {[%clk 0:00:23.4]} 38. Bc4 {[%clk 0:00:18.7]} 38... b5 {[%clk 0:00:23]} 39.
Re1 {[%clk 0:00:18.9]} 39... Qd8 {[%clk 0:00:18]} 40. Bd3 {[%clk 0:00:14.4]}
40... Re6 {[%clk 0:00:18.2]} 41. Qf1 {[%clk 0:00:13.5]} 41... Qd5+ {[%clk
0:00:17.7]} 42. f3 {[%clk 0:00:12.5]} 42... Qxb3 {[%clk 0:00:16.8]} 43. Rxe6
{[%clk 0:00:11.4]} 43... Qxe6 {[%clk 0:00:17.7]} 44. Be4 {[%clk 0:00:11.8]}
44... f5 {[%clk 0:00:15]} 45. Bd3 {[%clk 0:00:10.4]} 45... a5 {[%clk 0:00:15]}
46. Bxb5 {[%clk 0:00:09.1]} 46... cxb5 {[%clk 0:00:14.2]} 47. Qxb5 {[%clk
0:00:10]} 47... Bb6 {[%clk 0:00:11.6]} 48. Qa6 {[%clk 0:00:08.4]} 48... Qd6
{[%clk 0:00:10.6]} 49. Qa8+ {[%clk 0:00:07.3]} 49... Qd8 {[%clk 0:00:10.8]} 50.
Qb7 {[%clk 0:00:07.9]} 50... Qxd2+ {[%clk 0:00:10.3]} 51. Kh3 {[%clk 0:00:07.1]}
51... Qxh6+ {[%clk 0:00:10.3]} 52. Kg2 {[%clk 0:00:08]} 52... Qd2+ {[%clk
0:00:10.5]} 53. Kh3 {[%clk 0:00:08.5]} 53... Qd6 {[%clk 0:00:11.2]} 54. Qxh7
{[%clk 0:00:08.1]} 54... Bc7 {[%clk 0:00:11.6]} 55. f4 {[%clk 0:00:07.7]} 55...
a4 {[%clk 0:00:11.1]} 56. Qh8+ {[%clk 0:00:06]} 56... Ke7 {[%clk 0:00:11.6]} 57.
Qg7+ {[%clk 0:00:06.1]} 57... Kd8 {[%clk 0:00:12.1]} 58. Qg8+ {[%clk 0:00:06.4]}
58... Kd7 {[%clk 0:00:12.2]} 59. Qf7+ {[%clk 0:00:07.1]} 59... Kd8 {[%clk
0:00:07.4]} 60. Qg8+ {[%clk 0:00:06.6]} 60... Kd7 {[%clk 0:00:07.6]} 61. Qf7+
{[%clk 0:00:07]} 61... Kc6 {[%clk 0:00:04.3]} 62. Qc4+ {[%clk 0:00:07.7]} 62...
Kb6 {[%clk 0:00:04.1]} 63. Qxa4 {[%clk 0:00:07.9]} 63... Qc6 {[%clk 0:00:04.4]}
64. Qb3+ {[%clk 0:00:08.2]} 64... Ka7 {[%clk 0:00:04.4]} 65. Qa2+ {[%clk
0:00:07.7]} 65... Kb8 {[%clk 0:00:04.8]} 66. Qg8+ {[%clk 0:00:07.7]} 66... Kb7
{[%clk 0:00:05.4]} 67. Qb3+ {[%clk 0:00:08.3]} 67... Kc8 {[%clk 0:00:05.5]} 68.
Qg8+ {[%clk 0:00:08.6]} 68... Bd8 {[%clk 0:00:06.1]} 69. Qf7 {[%clk 0:00:08.1]}
69... Qh1# {[%clk 0:00:06.1]} 0-1

[Event "Early-Titled-Tuesday-Blitz-May-07-2024"]
[Site "Chess.com"]
[Date "2024.05.07"]
[Round "3"]
[White "chess_blitz00"]
[Black "mapleaff"]
[Result "0-1"]
[WhiteElo "2543"]
[BlackElo "2267"]
[TimeControl "180+1"]
[EndTime "8:33:25 PDT"]
[Termination "mapleaff won by checkmate"]

1. e4 {[%clk 0:03:00.9]} 1... c5 {[%clk 0:02:57.6]} 2. b3 {[%clk 0:03:00.1]}
2... b6 {[%clk 0:02:39.4]} 3. d4 {[%clk 0:02:58.1]} 3... cxd4 {[%clk 0:02:39]}
4. Qxd4 {[%clk 0:02:58]} 4... Nc6 {[%clk 0:02:37.6]} 5. Qd2 {[%clk 0:02:57.5]}
5... e6 {[%clk 0:02:37.2]} 6. Bb2 {[%clk 0:02:57.7]} 6... Nf6 {[%clk 0:02:35.5]}
7. Nc3 {[%clk 0:02:58.2]} 7... Bb4 {[%clk 0:02:35.2]} 8. f3 {[%clk 0:02:39.4]}
8... O-O {[%clk 0:02:31.8]} 9. a3 {[%clk 0:02:37.9]} 9... Bc5 {[%clk 0:02:22.2]}
10. O-O-O {[%clk 0:02:36.7]} 10... a5 {[%clk 0:02:01.8]} 11. a4 {[%clk 0:02:29]}
11... Qe7 {[%clk 0:02:00.5]} 12. Bb5 {[%clk 0:02:24.7]} 12... Bb7 {[%clk
0:01:41.2]} 13. Nge2 {[%clk 0:02:21]} 13... Rac8 {[%clk 0:01:37.4]} 14. Kb1
{[%clk 0:02:20.9]} 14... Rfd8 {[%clk 0:01:29.9]} 15. Qg5 {[%clk 0:02:14.5]}
15... h6 {[%clk 0:01:17.7]} 16. Qg3 {[%clk 0:02:12.2]} 16... Na7 {[%clk
0:01:02.2]} 17. Bd3 {[%clk 0:01:56.8]} 17... e5 {[%clk 0:00:48.7]} 18. Bc4
{[%clk 0:01:52.1]} 18... Ba3 {[%clk 0:00:30.7]} 19. Ba1 {[%clk 0:01:49.8]} 19...
Rxc4 {[%clk 0:00:24.9]} 20. bxc4 {[%clk 0:01:37.1]} 20... Qb4+ {[%clk
0:00:24.8]} 21. Ka2 {[%clk 0:01:37.6]} 21... Ba6 {[%clk 0:00:25]} 22. Rb1 {[%clk
0:01:09.9]} 22... Bxc4+ {[%clk 0:00:14.7]} 23. Rb3 {[%clk 0:01:10.5]} 23... Qe7
{[%clk 0:00:03.8]} 24. Rd1 {[%clk 0:00:42.8]} 24... Bc5 {[%clk 0:00:04.2]} 25.
Kb1 {[%clk 0:00:29.3]} 25... Bxb3 {[%clk 0:00:04.3]} 26. cxb3 {[%clk 0:00:30.2]}
26... Nc6 {[%clk 0:00:04.8]} 27. Nd5 {[%clk 0:00:28.9]} 27... Nxd5 {[%clk
0:00:04.6]} 28. exd5 {[%clk 0:00:21.6]} 28... Nd4 {[%clk 0:00:04.4]} 29. Nxd4
{[%clk 0:00:21]} 29... exd4 {[%clk 0:00:04.8]} 30. Re1 {[%clk 0:00:11]} 30...
Qf6 {[%clk 0:00:02.4]} 31. Re4 {[%clk 0:00:09.5]} 31... Qf5 {[%clk 0:00:02.1]}
32. Qg4 {[%clk 0:00:06]} 32... Qxd5 {[%clk 0:00:02]} 33. Ka2 {[%clk 0:00:04.5]}
33... f5 {[%clk 0:00:01.9]} 34. Qh5 {[%clk 0:00:03.5]} 34... Qf7 {[%clk
0:00:02.3]} 35. Qxf7+ {[%clk 0:00:03]} 35... Kxf7 {[%clk 0:00:03.2]} 36. Re5
{[%clk 0:00:03]} 36... Kf6 {[%clk 0:00:03.4]} 37. f4 {[%clk 0:00:02.2]} 37... d6
{[%clk 0:00:02.6]} 38. Re2 {[%clk 0:00:02.3]} 38... Rc8 {[%clk 0:00:02.4]} 39.
Rc2 {[%clk 0:00:02.2]} 39... Re8 {[%clk 0:00:02.1]} 40. Rd2 {[%clk 0:00:02.4]}
40... Re4 {[%clk 0:00:02.7]} 41. Bb2 {[%clk 0:00:02.5]} 41... Rxf4 {[%clk
0:00:02.9]} 42. Kb1 {[%clk 0:00:02.4]} 42... Re4 {[%clk 0:00:03.5]} 43. Kc2
{[%clk 0:00:02.8]} 43... Ke6 {[%clk 0:00:04.1]} 44. Kd3 {[%clk 0:00:03.2]} 44...
g5 {[%clk 0:00:04.8]} 45. Kc4 {[%clk 0:00:03.5]} 45... d5+ {[%clk 0:00:03.1]}
46. Kb5 {[%clk 0:00:03.7]} 46... f4 {[%clk 0:00:03.3]} 47. Kc6 {[%clk
0:00:03.1]} 47... Re3 {[%clk 0:00:02.9]} 48. Bxd4 {[%clk 0:00:02.6]} 48... Bxd4
{[%clk 0:00:03.8]} 49. Rxd4 {[%clk 0:00:03]} 49... Rxb3 {[%clk 0:00:04.5]} 50.
Rd1 {[%clk 0:00:03.1]} 50... Rb4 {[%clk 0:00:05.1]} 51. Re1+ {[%clk 0:00:03.6]}
51... Re4 {[%clk 0:00:05.8]} 52. Rd1 {[%clk 0:00:03]} 52... Rxa4 {[%clk
0:00:05.7]} 53. Kb5 {[%clk 0:00:02.5]} 53... Rb4+ {[%clk 0:00:05.9]} 54. Kc6
{[%clk 0:00:03.2]} 54... d4 {[%clk 0:00:02.4]} 55. Re1+ {[%clk 0:00:02.7]} 55...
Kf5 {[%clk 0:00:03]} 56. Kd5 {[%clk 0:00:02]} 56... Rb5+ {[%clk 0:00:02.7]} 57.
Kxd4 {[%clk 0:00:02]} 57... a4 {[%clk 0:00:02.1]} 58. Kc4 {[%clk 0:00:02]} 58...
Ra5 {[%clk 0:00:02.6]} 59. Kb4 {[%clk 0:00:01.9]} 59... a3 {[%clk 0:00:03.2]}
60. Ra1 {[%clk 0:00:02.3]} 60... a2 {[%clk 0:00:03.8]} 61. h3 {[%clk 0:00:01.7]}
61... Ke4 {[%clk 0:00:04.1]} 62. Kb3 {[%clk 0:00:02.2]} 62... Ke3 {[%clk
0:00:04.7]} 63. Kb4 {[%clk 0:00:02.1]} 63... Kf2 {[%clk 0:00:05.1]} 64. Kc4
{[%clk 0:00:02.8]} 64... Kxg2 {[%clk 0:00:05.6]} 65. Kd4 {[%clk 0:00:03.6]}
65... f3 {[%clk 0:00:05.3]} 66. Ke4 {[%clk 0:00:04.5]} 66... f2 {[%clk
0:00:05.7]} 67. h4 {[%clk 0:00:03.1]} 67... gxh4 {[%clk 0:00:05.7]} 68. Ke3
{[%clk 0:00:03.2]} 68... f1=Q {[%clk 0:00:05.5]} 69. Rxf1 {[%clk 0:00:03.3]}
69... Kxf1 {[%clk 0:00:06.4]} 70. Kd2 {[%clk 0:00:03.9]} 70... a1=Q {[%clk
0:00:06.6]} 71. Ke3 {[%clk 0:00:04]} 71... Qe5+ {[%clk 0:00:06.6]} 72. Kf3
{[%clk 0:00:04.2]} 72... Ra3+ {[%clk 0:00:06.9]} 73. Kg4 {[%clk 0:00:05.1]}
73... Qg3+ {[%clk 0:00:07]} 74. Kh5 {[%clk 0:00:05.6]} 74... Qg5# {[%clk
0:00:07.7]} 0-1

[Event "Early-Titled-Tuesday-Blitz-May-07-2024"]
[Site "Chess.com"]
[Date "2024.05.07"]
[Round "3"]
[White "SaiAgni_98"]
[Black "Let_it_be_1"]
[Result "1-0"]
[WhiteElo "2495"]
[BlackElo "2636"]
[TimeControl "180+1"]
[EndTime "8:33:32 PDT"]
[Termination "SaiAgni_98 won by resignation"]

1. c4 {[%clk 0:02:58.5]} 1... e6 {[%clk 0:03:00.1]} 2. g3 {[%clk 0:02:57.7]}
2... d5 {[%clk 0:03:01]} 3. Bg2 {[%clk 0:02:56.7]} 3... Nf6 {[%clk 0:03:01.3]}
4. Nf3 {[%clk 0:02:56.6]} 4... Be7 {[%clk 0:03:01.7]} 5. O-O {[%clk 0:02:56.7]}
5... O-O {[%clk 0:03:01.8]} 6. b3 {[%clk 0:02:57.4]} 6... c5 {[%clk 0:03:01.6]}
7. cxd5 {[%clk 0:02:55.2]} 7... Nxd5 {[%clk 0:03:01.9]} 8. Bb2 {[%clk
0:02:54.9]} 8... Nc6 {[%clk 0:03:01.9]} 9. d4 {[%clk 0:02:55.2]} 9... cxd4
{[%clk 0:03:02.2]} 10. Nxd4 {[%clk 0:02:56.1]} 10... Bd7 {[%clk 0:03:02.5]} 11.
Nd2 {[%clk 0:02:51.2]} 11... Nxd4 {[%clk 0:02:50.7]} 12. Bxd4 {[%clk 0:02:52.1]}
12... Bc6 {[%clk 0:02:51.1]} 13. Nc4 {[%clk 0:02:47.2]} 13... Nb4 {[%clk
0:02:40.1]} 14. e4 {[%clk 0:02:27.1]} 14... Nc2 {[%clk 0:02:34.5]} 15. Qxc2
{[%clk 0:02:18]} 15... Qxd4 {[%clk 0:02:34.7]} 16. Rad1 {[%clk 0:02:11.3]} 16...
Qc5 {[%clk 0:02:34.3]} 17. Rd2 {[%clk 0:01:43.6]} 17... Rac8 {[%clk 0:02:28.7]}
18. Ne3 {[%clk 0:01:28.4]} 18... Qa5 {[%clk 0:02:14.6]} 19. Nc4 {[%clk
0:01:21.1]} 19... Qh5 {[%clk 0:01:39.9]} 20. Qd1 {[%clk 0:00:56.5]} 20... Qc5
{[%clk 0:01:26.4]} 21. Qg4 {[%clk 0:00:30.8]} 21... h5 {[%clk 0:01:16.4]} 22.
Qe2 {[%clk 0:00:27.9]} 22... b5 {[%clk 0:00:59.4]} 23. Ne3 {[%clk 0:00:20.3]}
23... g6 {[%clk 0:00:51.1]} 24. Rc2 {[%clk 0:00:20.2]} 24... Qb6 {[%clk
0:00:46.4]} 25. Rfc1 {[%clk 0:00:17.9]} 25... Ba3 {[%clk 0:00:42.3]} 26. Rd1
{[%clk 0:00:18.2]} 26... Bb7 {[%clk 0:00:37.7]} 27. Rxc8 {[%clk 0:00:17.7]}
27... Rxc8 {[%clk 0:00:37.4]} 28. Qd2 {[%clk 0:00:17.4]} 28... Bc5 {[%clk
0:00:30.7]} 29. Re1 {[%clk 0:00:17.4]} 29... Rd8 {[%clk 0:00:28.9]} 30. Qe2
{[%clk 0:00:17.4]} 30... Bb4 {[%clk 0:00:19.8]} 31. Rd1 {[%clk 0:00:16.8]} 31...
Bc5 {[%clk 0:00:14.7]} 32. Rxd8+ {[%clk 0:00:15]} 32... Qxd8 {[%clk 0:00:14.6]}
33. Qxb5 {[%clk 0:00:15.3]} 33... Bb6 {[%clk 0:00:13.1]} 34. Qe2 {[%clk
0:00:14.5]} 34... Qd4 {[%clk 0:00:12.5]} 35. h4 {[%clk 0:00:14.8]} 35... Bxe4
{[%clk 0:00:12]} 36. Nc4 {[%clk 0:00:12.9]} 36... Bxg2 {[%clk 0:00:09.3]} 37.
Kxg2 {[%clk 0:00:13.8]} 37... Bc5 {[%clk 0:00:08.7]} 38. Qf3 {[%clk 0:00:13.6]}
38... e5 {[%clk 0:00:07.4]} 39. Qe3 {[%clk 0:00:12.1]} 39... Qd5+ {[%clk
0:00:07]} 40. Qf3 {[%clk 0:00:12]} 40... e4 {[%clk 0:00:07.6]} 41. Qf4 {[%clk
0:00:10.9]} 41... e3+ {[%clk 0:00:07.4]} 42. Qf3 {[%clk 0:00:10.3]} 42... Qxf3+
{[%clk 0:00:07.2]} 43. Kxf3 {[%clk 0:00:11.2]} 43... exf2 {[%clk 0:00:08.1]} 44.
Ke2 {[%clk 0:00:10.4]} 44... f6 {[%clk 0:00:08.3]} 45. Nd2 {[%clk 0:00:10.4]}
45... Kf7 {[%clk 0:00:07]} 46. Ne4 {[%clk 0:00:10.8]} 46... Bb6 {[%clk
0:00:06.9]} 47. Nxf2 {[%clk 0:00:11.3]} 47... Ke6 {[%clk 0:00:07.1]} 48. Nd3
{[%clk 0:00:10.3]} 48... Kf5 {[%clk 0:00:06.9]} 49. Kf3 {[%clk 0:00:10.7]} 49...
g5 {[%clk 0:00:06.8]} 50. hxg5 {[%clk 0:00:10.7]} 50... fxg5 {[%clk 0:00:07.3]}
51. Nb4 {[%clk 0:00:11.4]} 51... g4+ {[%clk 0:00:06.2]} 52. Kg2 {[%clk
0:00:11.5]} 52... Ke4 {[%clk 0:00:06.2]} 53. Nc6 {[%clk 0:00:11.7]} 53... Kd3
{[%clk 0:00:04.1]} 54. a4 {[%clk 0:00:11.9]} 54... a5 {[%clk 0:00:03.4]} 55. b4
{[%clk 0:00:11.7]} 55... axb4 {[%clk 0:00:03.4]} 56. Nxb4+ {[%clk 0:00:12.6]}
56... Ke4 {[%clk 0:00:03.8]} 57. Nc6 {[%clk 0:00:12.4]} 57... Kf5 {[%clk
0:00:03.6]} 58. Nb4 {[%clk 0:00:12.3]} 58... Kg5 {[%clk 0:00:03.5]} 59. Nd5
{[%clk 0:00:12.7]} 59... Ba5 {[%clk 0:00:03.2]} 60. Nf4 {[%clk 0:00:12.8]} 60...
h4 {[%clk 0:00:03.2]} 61. Ne6+ {[%clk 0:00:11.6]} 61... Kf6 {[%clk 0:00:03.5]}
62. Nd4 {[%clk 0:00:10.3]} 62... h3+ {[%clk 0:00:03.8]} 63. Kh2 {[%clk
0:00:10.3]} 63... Bb6 {[%clk 0:00:03.6]} 64. Nb3 {[%clk 0:00:09.9]} 64... Ba7
{[%clk 0:00:02.9]} 65. a5 {[%clk 0:00:10.4]} 65... Ke5 {[%clk 0:00:03.3]} 66.
Nd2 {[%clk 0:00:10.4]} 66... Kd4 {[%clk 0:00:02.8]} 67. a6 {[%clk 0:00:10.3]}
67... Ke3 {[%clk 0:00:02.6]} 68. Nc4+ {[%clk 0:00:10.6]} 68... Kf3 {[%clk
0:00:02]} 69. Ne5+ {[%clk 0:00:11.1]} 69... Kf2 {[%clk 0:00:01.3]} 70. Nxg4+
{[%clk 0:00:12]} 70... Kf1 {[%clk 0:00:01.7]} 71. Kxh3 {[%clk 0:00:12.5]} 71...
Ke2 {[%clk 0:00:01.4]} 72. Ne5 {[%clk 0:00:12.9]} 72... Ke3 {[%clk 0:00:01.7]}
73. Nc6 {[%clk 0:00:13.6]} 73... Bb6 {[%clk 0:00:01.2]} 74. a7 {[%clk
0:00:14.2]} 1-0

[Event "Early-Titled-Tuesday-Blitz-May-07-2024"]
[Site "Chess.com"]
[Date "2024.05.07"]
[Round "3"]
[White "atomicmate123"]
[Black "Guldona_2007"]
[Result "0-1"]
[WhiteElo "2341"]
[BlackElo "2168"]
[TimeControl "180+1"]
[EndTime "8:33:33 PDT"]
[Termination "Guldona_2007 won on time"]

1. e4 {[%clk 0:03:00.5]} 1... c5 {[%clk 0:02:59]} 2. Nf3 {[%clk 0:02:59.6]} 2...
d6 {[%clk 0:02:59]} 3. d4 {[%clk 0:02:57.7]} 3... cxd4 {[%clk 0:02:59.4]} 4.
Nxd4 {[%clk 0:02:58.6]} 4... Nf6 {[%clk 0:02:59.9]} 5. Nc3 {[%clk 0:02:59.1]}
5... Nc6 {[%clk 0:03:00.6]} 6. Bc4 {[%clk 0:02:51.2]} 6... Qb6 {[%clk 0:03:00]}
7. Nb3 {[%clk 0:02:46.4]} 7... e6 {[%clk 0:02:58.9]} 8. Be3 {[%clk 0:02:46.5]}
8... Qc7 {[%clk 0:02:52.4]} 9. O-O {[%clk 0:02:43.9]} 9... a6 {[%clk 0:02:49.2]}
10. a4 {[%clk 0:02:42]} 10... Ne5 {[%clk 0:02:47.4]} 11. Be2 {[%clk 0:02:38.6]}
11... Nc4 {[%clk 0:02:45.2]} 12. Bxc4 {[%clk 0:02:34.2]} 12... Qxc4 {[%clk
0:02:45.2]} 13. f3 {[%clk 0:02:30.3]} 13... Bd7 {[%clk 0:02:44.9]} 14. a5 {[%clk
0:02:28.7]} 14... Be7 {[%clk 0:02:43.6]} 15. Kh1 {[%clk 0:02:14.7]} 15... O-O
{[%clk 0:02:37.9]} 16. Qd2 {[%clk 0:02:11.5]} 16... Rac8 {[%clk 0:02:33.9]} 17.
Rfd1 {[%clk 0:02:10.9]} 17... Rfd8 {[%clk 0:02:20.9]} 18. Bb6 {[%clk 0:02:05.7]}
18... Re8 {[%clk 0:02:20.2]} 19. Qe3 {[%clk 0:01:43.8]} 19... Bb5 {[%clk
0:01:44.9]} 20. Nxb5 {[%clk 0:00:55.1]} 20... Qxb5 {[%clk 0:01:42.8]} 21. Nd4
{[%clk 0:00:52.7]} 21... Qd7 {[%clk 0:01:40.6]} 22. Qb3 {[%clk 0:00:41.9]} 22...
Bd8 {[%clk 0:01:28.1]} 23. Bxd8 {[%clk 0:00:37.4]} 23... Rexd8 {[%clk 0:01:28]}
24. e5 {[%clk 0:00:37.4]} 24... dxe5 {[%clk 0:01:19.8]} 25. Nf5 {[%clk
0:00:35.4]} 25... Qc7 {[%clk 0:01:19.5]} 26. Ne3 {[%clk 0:00:33.6]} 26... Nd7
{[%clk 0:01:15.8]} 27. c3 {[%clk 0:00:31.2]} 27... Nc5 {[%clk 0:01:15.6]} 28.
Qc4 {[%clk 0:00:31]} 28... Nd7 {[%clk 0:01:01.9]} 29. Qxc7 {[%clk 0:00:27.7]}
29... Rxc7 {[%clk 0:01:01.8]} 30. Rd2 {[%clk 0:00:28.2]} 30... Kf8 {[%clk
0:01:01.6]} 31. Rad1 {[%clk 0:00:28.4]} 31... Ke7 {[%clk 0:01:01.5]} 32. Ng4
{[%clk 0:00:28.8]} 32... Rcc8 {[%clk 0:01:00.3]} 33. Kg1 {[%clk 0:00:27.7]}
33... f5 {[%clk 0:00:58.5]} 34. Ne3 {[%clk 0:00:27.3]} 34... Nc5 {[%clk
0:00:57.5]} 35. Kf2 {[%clk 0:00:24.6]} 35... Rxd2+ {[%clk 0:00:48.6]} 36. Rxd2
{[%clk 0:00:25.5]} 36... Nb3 {[%clk 0:00:49]} 37. Re2 {[%clk 0:00:22.2]} 37...
Nxa5 {[%clk 0:00:48.6]} 38. Nc2 {[%clk 0:00:20.7]} 38... Kf6 {[%clk 0:00:45.4]}
39. Nb4 {[%clk 0:00:19.1]} 39... Nb3 {[%clk 0:00:42.1]} 40. Nd3 {[%clk
0:00:18.6]} 40... Rd8 {[%clk 0:00:31.3]} 41. Nxe5 {[%clk 0:00:18.4]} 41... Nc5
{[%clk 0:00:31.5]} 42. Nc4 {[%clk 0:00:17.6]} 42... b5 {[%clk 0:00:27.6]} 43.
Na3 {[%clk 0:00:13.9]} 43... e5 {[%clk 0:00:21.4]} 44. b4 {[%clk 0:00:12.4]}
44... Na4 {[%clk 0:00:17.3]} 45. c4 {[%clk 0:00:12.4]} 45... bxc4 {[%clk
0:00:17.3]} 46. Nxc4 {[%clk 0:00:12.7]} 46... Nc3 {[%clk 0:00:05.7]} 47. Rc2
{[%clk 0:00:11.7]} 47... Nb5 {[%clk 0:00:05.3]} 48. Re2 {[%clk 0:00:09.5]} 48...
Re8 {[%clk 0:00:04.6]} 49. Ra2 {[%clk 0:00:08.3]} 49... Re6 {[%clk 0:00:04.5]}
50. Ke3 {[%clk 0:00:06.8]} 50... Nc3 {[%clk 0:00:03.9]} 51. Ra3 {[%clk
0:00:05.7]} 51... Nb5 {[%clk 0:00:04.2]} 52. Kf2 {[%clk 0:00:04.8]} 52... Rc6
{[%clk 0:00:04.6]} 53. Na5 {[%clk 0:00:03.4]} 53... Nxa3 {[%clk 0:00:04.4]} 54.
Nxc6 {[%clk 0:00:02.8]} 54... Nc2 {[%clk 0:00:04.9]} 55. Ke2 {[%clk 0:00:02.3]}
55... e4 {[%clk 0:00:04.7]} 56. fxe4 {[%clk 0:00:01.7]} 56... fxe4 {[%clk
0:00:05.2]} 57. Kd2 {[%clk 0:00:02.4]} 57... Na3 {[%clk 0:00:04.4]} 58. Ke3
{[%clk 0:00:02.7]} 58... Kf5 {[%clk 0:00:04.6]} 59. Nb8 {[%clk 0:00:02]} 59...
Nc4+ {[%clk 0:00:04.2]} 60. Kd4 {[%clk 0:00:02.1]} 60... e3 {[%clk 0:00:04.5]}
61. Kd3 {[%clk 0:00:00.5]} 61... Kf4 {[%clk 0:00:04.1]} 0-1